bitfinex/quotes_BTCUSD_20240728
["timestamp","ask_amount","ask_price","bid_price","bid_amount"]
[1722191722343,0.11409504,68375.0,68374.0,0.0568064]
[1722191722344,0.003,68375.0,68374.0,0.0568064]
[1722191723105,0.02595496,68375.0,68374.0,0.1738094]
[1722191723352,0.13549557,68375.0,68374.0,0.6918234]
[1722191723579,0.02595496,68375.0,68374.0,0.8376234]
[1722191723727,0.11358524,68375.0,68374.0,0.8376234]
[1722191723942,0.11254061,68375.0,68374.0,0.8376234]
[1722191724143,0.003,68375.0,68374.0,0.8376234]
[1722191724344,0.11254484,68375.0,68374.0,0.8376234]
[1722191724545,0.11254256,68375.0,68374.0,0.3696094]
[1722191725436,0.003,68375.0,68374.0,0.3696094]
[1722191725722,0.11409676,68375.0,68374.0,0.3696094]
[1722191725863,0.11254256,68375.0,68374.0,0.3696094]
[1722191726065,0.11254154,68375.0,68374.0,0.6036164]
[1722191726285,0.090631,68375.0,68374.0,0.6036164]
[1722191727092,0.11358565,68375.0,68374.0,0.6036164]
[1722191727335,0.11358304,68375.0,68374.0,0.6036164]
[1722191727516,0.02595465,68375.0,68374.0,0.3696094]
[1722191727752,0.11513724,68375.0,68374.0,0.3696094]
[1722191727933,0.02750885,68375.0,68374.0,0.3696094]
[1722191728341,0.003,68375.0,68374.0,0.1871064]
[1722191728561,0.003,68375.0,68374.0,0.1068064]
[1722191729714,0.003,68375.0,68374.0,0.2238094]
[1722191729911,0.003,68375.0,68374.0,0.143003]
[1722191730834,0.00384,68375.0,68374.0,0.143003]
[1722191731455,0.00384,68375.0,68374.0,0.70883222]
[1722191731456,0.02679494,68375.0,68374.0,0.70883222]
[1722191731867,0.00384,68375.0,68374.0,0.70883222]
[1722191732069,0.00384,68375.0,68374.0,0.47482522]
[1722191733403,0.11338304,68375.0,68374.0,0.47482522]
[1722191733599,0.00384,68375.0,68374.0,0.47482522]
[1722191733746,0.11338595,68375.0,68374.0,0.47482522]
[1722191734164,0.09147656,68375.0,68374.0,0.47482522]
[1722191734368,0.11338595,68375.0,68374.0,0.47482522]
[1722191735263,0.13634076,68375.0,68374.0,0.47482522]
[1722191735875,0.13634922,68375.0,68374.0,0.47482522]
[1722191736456,0.02679481,68375.0,68374.0,0.47482522]
[1722191736938,0.13635419,68375.0,68374.0,0.47482522]
[1722191737347,0.00384,68375.0,68374.0,0.47482522]
[1722191737632,0.00384,68375.0,68374.0,0.85063222]
[1722191738009,0.00384,68375.0,68374.0,1.08463922]
[1722191738010,0.04921617,68375.0,68374.0,1.08463922]
[1722191738163,0.0053942,68375.0,68374.0,1.08463922]
[1722191738571,0.04921617,68375.0,68374.0,1.08463922]
[1722191738771,0.04766197,68375.0,68374.0,1.08463922]
[1722191739181,0.00384,68375.0,68374.0,1.08463922]
[1722191739401,0.0053942,68375.0,68374.0,1.08463922]
[1722191739802,0.00384,68375.0,68374.0,1.08463922]
[1722191740222,0.04766159,68375.0,68374.0,1.08463922]
[1722191740421,0.00384,68375.0,68374.0,1.08463922]
[1722191740622,0.0053942,68375.0,68374.0,1.08463922]
[1722191741055,0.04921811,68375.0,68374.0,1.08463922]
[1722191741225,0.04766391,68375.0,68374.0,1.08463922]
[1722191741869,0.02679383,68375.0,68374.0,1.08463922]
[1722191742023,0.07217583,68375.0,68374.0,1.08463922]
[1722191742373,0.02834803,68375.0,68374.0,1.08463922]
[1722191742574,0.02679383,68375.0,68374.0,1.08463922]
[1722191742984,0.02679383,68375.0,68374.0,1.10763922]
[1722191743386,0.02679383,68375.0,68374.0,1.34164622]
[1722191743766,0.02679383,68375.0,68374.0,1.10763922]
[1722191743962,0.02679383,68375.0,68374.0,1.34164622]
[1722191744160,0.02679383,68375.0,68374.0,1.10763922]
[1722191746296,0.07063631,68375.0,68374.0,1.10763922]
[1722191747040,0.07219051,68375.0,68374.0,1.18663368]
[1722191747264,0.0053942,68375.0,68374.0,0.85063222]
[1722191747605,0.09152497,68375.0,68374.0,0.70883222]
[1722191748426,0.0053942,68375.0,68374.0,0.70883222]
[1722191748765,0.0053942,68375.0,68374.0,0.47482522]
[1722191749188,0.00384,68375.0,68374.0,0.47482522]
[1722191749389,0.02679393,68375.0,68374.0,0.70883222]
[1722191749590,0.13643895,68375.0,68374.0,0.70883222]
[1722191750371,0.02679393,68375.0,68374.0,0.70883222]
[1722191750595,0.13647445,68375.0,68374.0,0.70883222]
[1722191752079,0.13648042,68375.0,68374.0,0.70883222]
[1722191752279,0.02679393,68375.0,68374.0,0.70883222]
[1722191752558,0.02679393,68375.0,68374.0,0.47482522]
[1722191752830,0.02679393,68375.0,68374.0,0.70883222]
[1722191753442,0.00384,68375.0,68374.0,0.70883222]
[1722191756547,0.0053942,68375.0,68374.0,0.70883222]
[1722191756750,0.02834879,68375.0,68374.0,0.70883222]
[1722191756951,0.02679459,68375.0,68374.0,0.70883222]
[1722191757151,0.13551963,68375.0,68374.0,0.70883222]
[1722191757723,0.00384,68375.0,68374.0,0.70883222]
[1722191760401,0.02679455,68375.0,68374.0,0.70883222]
[1722191761056,0.02679455,68375.0,68374.0,0.93833222]
[1722191761382,0.13653578,68375.0,68374.0,1.17233922]
[1722191761586,0.11358123,68375.0,68374.0,1.17233922]
[1722191761790,0.00384,68375.0,68374.0,1.17233922]
[1722191762626,0.00384,68375.0,68374.0,1.19533922]
[1722191762903,0.06968428,68375.0,68374.0,1.19533922]
[1722191763104,0.00384,68375.0,68374.0,1.19533922]
[1722191763303,0.00384,68375.0,68374.0,1.11133922]
[1722191763304,0.0053942,68375.0,68374.0,1.11133922]
[1722191764305,0.04928507,68375.0,68374.0,1.11133922]
[1722191764503,0.07068442,68375.0,68374.0,1.11133922]
[1722191764903,0.07223862,68375.0,68374.0,1.11133922]
[1722191765102,0.04928507,68375.0,68374.0,1.11133922]
[1722191766075,0.04773087,68375.0,68374.0,1.11133922]
[1722191766862,0.06967965,68375.0,68374.0,1.11133922]
[1722191767261,0.00384,68375.0,68374.0,1.11813922]
[1722191767434,0.07122244,68375.0,68374.0,1.11813922]
[1722191767637,0.0053942,68375.0,68374.0,1.11813922]
[1722191767955,0.09316866,68375.0,68374.0,1.35214622]
[1722191768160,0.00384,68375.0,68374.0,1.11813922]
[1722191768365,0.02834775,68375.0,68374.0,1.11813922]
[1722191768655,0.09417572,68375.0,68374.0,1.11813922]
[1722191768786,0.09262152,68375.0,68374.0,1.11813922]
[1722191768991,0.09262152,68375.0,68374.0,1.35214622]
[1722191769229,0.09162152,68375.0,68374.0,1.34014622]
[1722191769420,0.06666797,68375.0,68374.0,1.32614622]
[1722191770274,0.06766797,68375.0,68374.0,1.10413922]
[1722191770560,0.00184,68375.0,68374.0,1.10413922]
[1722191770744,0.06666971,68375.0,68374.0,1.09213922]
[1722191770880,0.06666901,68375.0,68374.0,1.10613922]
[1722191771086,0.06766901,68375.0,68374.0,1.11813922]
[1722191772813,0.00184,68375.0,68374.0,1.11813922]
[1722191773022,0.0033942,68375.0,68374.0,1.11813922]
[1722191773426,0.09116622,68375.0,68374.0,1.11813922]
[1722191773543,0.08961202,68375.0,68374.0,1.11813922]
[1722191773764,0.08961339,68375.0,68374.0,1.11813922]
[1722191774005,0.11256816,68375.0,68374.0,1.11813922]
[1722191774410,0.08961339,68375.0,68374.0,1.11813922]
[1722191775321,0.00184,68375.0,68374.0,1.11813922]
[1722191775527,0.11155674,68375.0,68374.0,0.90192007]
[1722191775748,0.00184,68375.0,68374.0,0.71563222]
[1722191776137,0.0033942,68375.0,68374.0,0.71563222]
[1722191776335,0.13505428,68375.0,68374.0,0.71563222]
[1722191776560,0.13350008,68375.0,68374.0,0.71563222]
[1722191776819,0.00184,68375.0,68374.0,0.71563222]
[1722191777216,0.0033942,68375.0,68374.0,0.71563222]
[1722191777392,0.0247948,68375.0,68374.0,0.71563222]
[1722191777595,0.00184,68375.0,68374.0,0.71563222]
[1722191777961,0.0033942,68375.0,68374.0,0.71563222]
[1722191778603,0.13509614,68375.0,68374.0,0.71563222]
[1722191778801,0.13354194,68375.0,68374.0,0.71563222]
[1722191779683,0.00184,68375.0,68374.0,0.71563222]
[1722191780703,0.02479464,68375.0,68374.0,0.48162522]
[1722191780961,0.02479464,68375.0,68374.0,0.94963922]
[1722191781826,0.15650967,68375.0,68374.0,0.71563222]
[1722191782154,0.02479464,68375.0,68374.0,0.71563222]
[1722191784468,0.15651363,68375.0,68374.0,0.71563222]
[1722191784986,0.02479464,68375.0,68374.0,0.71563222]
[1722191785433,0.15650938,68375.0,68374.0,0.71563222]
[1722191785860,0.02479464,68375.0,68374.0,0.71563222]
[1722191786264,0.15650754,68375.0,68374.0,0.13061522]
[1722191786473,0.15650754,68375.0,68374.0,0.48162522]
[1722191786674,0.15650508,68375.0,68374.0,0.48162522]
[1722191786870,0.15650508,68375.0,68374.0,0.24761822]
[1722191787047,0.15550508,68375.0,68374.0,0.23561822]
[1722191787212,0.15550508,68375.0,68374.0,0.46962522]
[1722191787414,0.15550508,68375.0,68374.0,0.48062522]
[1722191787837,0.15550508,68375.0,68374.0,0.46662522]
[1722191789294,0.15550508,68375.0,68374.0,0.47162522]
[1722191789689,0.13255044,68375.0,68374.0,0.47162522]
[1722191789891,0.13254664,68375.0,68374.0,0.47162522]
[1722191790480,0.13254664,68375.0,68374.0,0.46692421]
[1722191790481,0.13255325,68375.0,68374.0,0.46692421]
[1722191790705,0.00084,68375.0,68374.0,0.46692421]
[1722191791004,0.0023942,68375.0,68374.0,0.46692421]
[1722191791341,0.13410745,68375.0,68374.0,0.46692421]
[1722191791547,0.13255325,68375.0,68374.0,0.46692421]
[1722191791975,0.00084,68375.0,68374.0,0.46692421]
[1722191792180,0.13410745,68375.0,68374.0,0.46692421]
[1722191792470,0.13256127,68375.0,68374.0,0.46692421]
[1722191792909,0.0023942,68375.0,68374.0,0.46692421]
[1722191793199,0.02534914,68375.0,68374.0,0.46692421]
[1722191793339,0.15706722,68375.0,68374.0,0.46692421]
[1722191793563,0.02534914,68375.0,68374.0,0.46692421]
[1722191794160,0.17385494,68375.0,68374.0,0.46692421]
[1722191794374,0.28261799,68375.0,68374.0,0.46692421]
[1722191794576,0.1509,68375.0,68374.0,0.46692421]
[1722191794740,0.28261947,68375.0,68374.0,0.46692421]
[1722191794941,0.1509,68375.0,68374.0,0.46692421]
[1722191795771,0.28261712,68375.0,68374.0,0.46692421]
[1722191795985,0.1509,68375.0,68374.0,0.23291721]
[1722191796196,0.2826157,68375.0,68374.0,0.11591421]
[1722191796401,0.1509,68375.0,68374.0,0.11591421]
[1722191797423,0.1509,68375.0,68374.0,0.23291721]
[1722191797424,0.28261311,68375.0,68374.0,0.23291721]
[1722191797628,0.1509,68375.0,68374.0,0.23291721]
[1722191798146,0.1524542,68375.0,68374.0,0.46692421]
[1722191798949,0.1524542,68375.0,68374.0,0.81086221]
[1722191799183,0.1524542,68375.0,68374.0,0.95656221]
[1722191799184,0.1509,68375.0,68374.0,0.95656221]
[1722191800423,0.1509,68375.0,68374.0,1.19056921]
[1722191800639,0.19479635,68375.0,68374.0,1.54757621]
[1722191800911,0.0015542,68382.0,68374.0,1.54757621]
[1722191800912,0.04389635,68387.0,68386.0,0.3647724]
[1722191801081,0.04389635,68391.0,68390.0,0.5774344]
[1722191801297,0.06584452,68394.0,68393.0,0.584855]
[1722191801298,0.04389635,68394.0,68393.0,0.584855]
[1722191801498,0.08779591,68399.0,68398.0,0.6656164]
[1722191801499,0.04389635,68399.0,68398.0,0.6656164]
[1722191801648,0.06584452,68401.0,68400.0,0.6656014]
[1722191801649,0.04389635,68401.0,68400.0,0.6656014]
[1722191801850,0.01530169,68403.0,68402.0,0.6655834]
[1722191802054,0.01530169,68403.0,68402.0,1.61123519]
[1722191802290,0.0438546,68411.0,68410.0,0.6155134]
[1722191802590,0.0438546,68412.0,68411.0,0.8112064]
[1722191802779,0.19651465,68428.0,68424.0,0.1477234]
[1722191802954,0.18456886,68430.0,68427.0,0.0308064]
[1722191802955,0.13141465,68429.0,68427.0,0.0308064]
[1722191803169,0.13141465,68429.0,68428.0,0.04152068]
[1722191803381,0.00906686,68430.0,68429.0,0.0308064]
[1722191803619,0.182005,68432.0,68429.0,0.0415206]
[1722191803826,0.0651,68432.0,68430.0,0.0308064]
[1722191804385,0.08566681,68431.0,68430.0,0.04152053]
[1722191804545,0.10860781,68431.0,68430.0,0.01071413]
[1722191804776,0.08566681,68431.0,68429.0,0.0308064]
[1722191804891,0.10933472,68430.0,68429.0,0.0308064]
[1722191805092,0.10933472,68430.0,68427.0,0.116912]
[1722191805321,0.08741078,68430.0,68428.0,0.01071428]
[1722191805515,0.08741078,68430.0,68420.0,0.233846]
[1722191805516,0.08741078,68430.0,68426.0,0.1977204]
[1722191805722,0.06555524,68427.0,68426.0,0.1977204]
[1722191806062,0.08566681,68431.0,68429.0,0.001]
[1722191806260,0.08736531,68430.0,68429.0,0.001]
[1722191806406,0.17303212,68431.0,68429.0,0.001]
[1722191806771,0.17303212,68431.0,68429.0,0.0318064]
[1722191806989,0.17303212,68431.0,68430.0,0.0308064]
[1722191807194,0.00896681,68431.0,68430.0,0.1977134]
[1722191807395,0.08736531,68433.0,68430.0,0.1977134]
[1722191807396,0.04365832,68433.0,68430.0,0.1977134]
[1722191807611,0.04365832,68435.0,68431.0,0.01069639]
[1722191807816,0.04365832,68433.0,68431.0,0.04150279]
[1722191808300,0.04365832,68434.0,68431.0,0.04150279]
[1722191808473,0.04365832,68434.0,68433.0,0.0308064]
[1722191808876,0.16055832,68434.0,68433.0,0.01062917]
[1722191809080,0.52882825,68434.0,68433.0,0.01062917]
[1722191809354,0.1360996,68431.0,68430.0,0.001]
[1722191809532,0.6037236,68431.0,68430.0,0.001]
[1722191809699,0.7443236,68431.0,68430.0,0.001]
[1722191809899,0.7443236,68431.0,68423.0,0.0308064]
[1722191809900,0.233819,68429.0,68423.0,0.0308064]
[1722191810060,0.116915,68426.0,68423.0,0.0308064]
[1722191810268,0.116915,68426.0,68416.0,0.33386]
[1722191810269,0.116916,68425.0,68424.0,0.01062637]
[1722191810692,0.116918,68424.0,68419.0,0.1977314]
[1722191810890,0.116916,68425.0,68421.0,0.0808064]
[1722191811453,0.116916,68425.0,68419.0,0.116925]
[1722191811454,0.116916,68425.0,68424.0,0.009]
[1722191811849,0.116916,68425.0,68419.0,0.1977314]
[1722191812240,0.116916,68425.0,68423.0,0.003]
[1722191812437,0.116916,68425.0,68419.0,0.1977314]
[1722191812601,0.116916,68425.0,68421.0,0.0808064]
[1722191812982,0.116916,68425.0,68424.0,0.001]
[1722191812983,0.8376056,68425.0,68424.0,0.001]
[1722191813157,0.5105566,68422.0,68421.0,0.006]
[1722191813407,0.257521,68422.0,68421.0,0.006]
[1722191813547,0.491363,68422.0,68421.0,0.006]
[1722191813750,0.76734068,68422.0,68421.0,0.006]
[1722191813949,0.74814708,68422.0,68421.0,0.006]
[1722191814150,0.116927,68419.0,68413.0,0.0808064]
[1722191814378,0.116924,68421.0,68419.0,0.0368064]
[1722191814607,0.116924,68420.0,68419.0,0.006]
[1722191814785,0.116932,68416.0,68412.0,0.0308064]
[1722191814986,0.116932,68416.0,68412.0,0.0808064]
[1722191815184,0.116933,68415.0,68412.0,0.0808064]
[1722191815540,0.23386,68417.0,68411.0,0.0308064]
[1722191815541,0.116936,68414.0,68411.0,0.0308064]
[1722191815695,0.116936,68414.0,68410.0,0.0808064]
[1722191815929,0.116936,68414.0,68412.0,0.004]
[1722191816302,0.116936,68413.0,68412.0,0.004]
[1722191816532,0.13987726,68415.0,68412.0,0.004]
[1722191816733,0.02294326,68415.0,68413.0,0.0308064]
[1722191817265,0.02294326,68415.0,68410.0,0.001]
[1722191817431,0.02294326,68415.0,68411.0,0.006]
[1722191817640,0.116937,68413.0,68411.0,0.006]
[1722191817851,0.116938,68412.0,68410.0,0.001]
[1722191818422,0.116938,68412.0,68409.0,0.0808064]
[1722191818624,0.24917369,68414.0,68408.0,0.0808064]
[1722191818848,0.24917369,68414.0,68405.0,0.0789]
[1722191818849,0.350811,68413.0,68412.0,0.002]
[1722191819050,0.35082,68411.0,68410.0,0.004]
[1722191819278,0.116938,68412.0,68410.0,0.004]
[1722191819523,0.01530169,68414.0,68410.0,0.0348064]
[1722191819714,0.01530169,68414.0,68413.0,0.0308064]
[1722191820065,0.01530169,68414.0,68413.0,0.04145065]
[1722191821137,0.01530169,68414.0,68413.0,0.04345065]
[1722191821741,0.01530169,68414.0,68413.0,0.10695065]
[1722191821976,0.01530169,68414.0,68413.0,0.50775965]
[1722191822203,0.01530169,68414.0,68413.0,0.27388665]
[1722191823398,0.01530169,68414.0,68413.0,0.07614425]
[1722191823600,0.01530169,68414.0,68413.0,0.09345065]
[1722191823799,0.01530169,68414.0,68413.0,0.21038665]
[1722191824151,0.01530169,68414.0,68413.0,0.01264425]
[1722191824888,0.01530169,68414.0,68413.0,0.04345065]
[1722191825695,0.03824564,68414.0,68413.0,0.04345065]
[1722191826970,0.03824564,68414.0,68413.0,0.01264425]
[1722191827172,0.03824564,68414.0,68413.0,0.04345065]
[1722191827588,0.03824564,68414.0,68413.0,0.01264425]
[1722191827589,0.13223669,68414.0,68413.0,0.01264425]
[1722191828329,0.36610669,68414.0,68413.0,0.01264425]
[1722191828746,0.74157669,68414.0,68413.0,0.01264425]
[1722191829015,0.74157669,68414.0,68413.0,0.002]
[1722191829357,0.76077029,68414.0,68413.0,0.002]
[1722191830436,0.74157669,68414.0,68413.0,0.002]
[1722191831141,0.15518147,68414.0,68413.0,0.002]
[1722191831284,0.38905147,68414.0,68413.0,0.002]
[1722191831853,0.01530169,68414.0,68413.0,0.0328064]
[1722191832059,0.13223669,68414.0,68413.0,0.0328064]
[1722191832305,0.13223669,68414.0,68413.0,0.04347779]
[1722191832496,0.01530169,68414.0,68413.0,0.04347779]
[1722191832692,0.01530169,68414.0,68413.0,0.0328064]
[1722191832895,0.01530169,68414.0,68413.0,0.18632979]
[1722191833110,0.01530169,68414.0,68413.0,0.42020279]
[1722191833310,0.01530169,68414.0,68413.0,0.65407579]
[1722191833540,0.01530169,68414.0,68413.0,0.42020279]
[1722191834934,0.01530169,68414.0,68413.0,0.70407579]
[1722191835294,0.01530169,68414.0,68413.0,0.84867579]
[1722191836698,0.01530169,68414.0,68413.0,1.08254879]
[1722191836847,0.01530169,68414.0,68413.0,1.10554879]
[1722191837644,0.01530169,68414.0,68413.0,1.10354879]
[1722191838029,0.01530169,68414.0,68413.0,1.10854879]
[1722191838233,0.01530169,68414.0,68413.0,1.34242179]
[1722191838476,0.01530169,68414.0,68413.0,1.33742179]
[1722191838713,0.01530169,68414.0,68413.0,1.34742179]
[1722191839227,0.00889164,68430.0,68428.0,0.0808064]
[1722191839426,0.04447775,68431.0,68429.0,0.01065498]
[1722191839648,0.05315673,68431.0,68430.0,0.0308064]
[1722191839855,0.05315673,68431.0,68430.0,0.01065491]
[1722191840078,0.09139879,68431.0,68430.0,0.01065491]
[1722191840394,0.04776104,68431.0,68430.0,0.01065491]
[1722191840606,0.39847904,68431.0,68430.0,0.01065491]
[1722191840810,0.24216704,68431.0,68430.0,0.01065491]
[1722191841028,0.24216704,68431.0,68426.0,0.116913]
[1722191841245,0.24216704,68431.0,68421.0,0.378444]
[1722191841246,0.47597904,68431.0,68430.0,0.01065491]
[1722191841445,0.47597904,68431.0,68423.0,0.0808064]
[1722191841446,0.11691,68429.0,68423.0,0.0308064]
[1722191841618,0.15147219,68430.0,68428.0,0.001]
[1722191841773,0.06552914,68429.0,68428.0,0.001]
[1722191841974,0.06552914,68429.0,68427.0,0.0308064]
[1722191842188,0.06552914,68429.0,68421.0,0.378444]
[1722191842189,0.06552914,68429.0,68428.0,0.1977174]
[1722191842390,0.12645425,68431.0,68422.0,0.07512979]
[1722191842391,0.10463431,68431.0,68430.0,0.5761284]
[1722191842590,0.10463431,68431.0,68430.0,0.8099434]
[1722191842792,0.03908206,68431.0,68430.0,0.8099434]
[1722191845760,0.08284045,68431.0,68430.0,0.5761284]
[1722191845945,0.08284045,68431.0,68430.0,0.5791284]
[1722191846321,0.03908206,68431.0,68430.0,0.5761284]
[1722191846545,0.10475534,68431.0,68430.0,0.8099434]
[1722191847295,0.03908206,68431.0,68430.0,0.5261284]
[1722191847444,0.10318206,68431.0,68424.0,0.0808064]
[1722191847625,0.10318206,68431.0,68425.0,0.116915]
[1722191847626,0.06567944,68426.0,68425.0,0.116915]
[1722191847807,0.06567944,68426.0,68422.0,0.295739]
[1722191847808,0.08757259,68427.0,68423.0,0.0808064]
[1722191848030,0.10946574,68429.0,68423.0,0.0808064]
[1722191848031,0.08757259,68424.0,68423.0,0.0808064]
[1722191848260,0.33699606,68431.0,68420.0,0.0808064]
[1722191848261,0.10946574,68425.0,68420.0,0.0808064]
[1722191848451,0.10946574,68425.0,68410.0,0.1]
[1722191848452,0.05,68420.0,68410.0,0.04078785]
[1722191848685,0.116939,68412.0,68407.0,0.0656]
[1722191848876,0.116939,68412.0,68406.0,0.1977544]
[1722191848877,0.0015542,68411.0,68406.0,0.0808064]
[1722191849063,0.13139228,68412.0,68406.0,0.0808064]
[1722191849304,0.13139228,68412.0,68406.0,0.1977544]
[1722191849490,0.24833028,68412.0,68406.0,0.0808064]
[1722191849700,0.13294648,68411.0,68406.0,0.0808064]
[1722191850067,0.13294648,68411.0,68403.0,0.0656]
[1722191850068,0.116943,68410.0,68407.0,0.001]
[1722191850241,0.0015542,68409.0,68403.0,0.0656]
[1722191850460,0.11695,68406.0,68401.0,0.0781]
[1722191850658,0.233891,68408.0,68401.0,0.0781]
[1722191850659,0.08758671,68402.0,68401.0,0.0781]
[1722191850866,0.10949273,68403.0,68401.0,0.0781]
[1722191851244,0.10949273,68402.0,68401.0,0.0781]
[1722191851451,0.10949273,68402.0,68401.0,0.1589064]
[1722191851650,0.10949273,68402.0,68401.0,0.2758634]
[1722191851847,0.10949273,68402.0,68401.0,0.2838634]
[1722191852051,0.10949273,68403.0,68401.0,0.205057]
[1722191852219,0.11104693,68402.0,68401.0,0.197057]
[1722191852449,0.11104693,68402.0,68401.0,0.20700949]
[1722191852637,0.11104693,68402.0,68401.0,0.17985889]
[1722191852837,0.10949273,68402.0,68401.0,0.17985889]
[1722191853033,0.10949273,68402.0,68401.0,0.17785889]
[1722191853354,0.0015542,68404.0,68403.0,0.0308064]
[1722191853589,0.29327532,68413.0,68403.0,0.00995234]
[1722191853590,0.0015542,68406.0,68403.0,0.00995234]
[1722191853804,0.0015542,68406.0,68405.0,0.0808064]
[1722191854138,0.1185012,68407.0,68406.0,0.0308064]
[1722191854483,0.0015542,68407.0,68406.0,0.04075852]
[1722191854903,0.02449936,68407.0,68406.0,0.04075852]
[1722191855106,0.23388,68411.0,68410.0,0.0308064]
[1722191855306,0.11694,68411.0,68410.0,0.0308064]
[1722191855509,0.11694,68411.0,68410.0,0.03975822]
[1722191855779,0.13224169,68411.0,68410.0,0.03975822]
[1722191856037,0.01530169,68411.0,68410.0,0.03975822]
[1722191856251,0.01530169,68411.0,68410.0,0.10235822]
[1722191856832,0.03824622,68411.0,68410.0,0.45318222]
[1722191857032,0.03824622,68411.0,68410.0,0.63128222]
[1722191857447,0.08202218,68411.0,68410.0,0.63128222]
[1722191857606,0.08502218,68411.0,68410.0,0.63128222]
[1722191858053,0.04124622,68411.0,68410.0,0.63128222]
[1722191858910,0.03924622,68411.0,68410.0,1.09904822]
[1722191859112,0.01630169,68411.0,68410.0,1.09904822]
[1722191859356,0.01830169,68411.0,68410.0,1.09904822]
[1722191859574,0.01630169,68411.0,68410.0,1.09904822]
[1722191860197,0.01714169,68411.0,68410.0,0.86516522]
[1722191860542,0.01614169,68411.0,68410.0,0.86516522]
[1722191860831,0.01614169,68411.0,68410.0,0.86916522]
[1722191861398,0.01614169,68411.0,68410.0,0.86516522]
[1722191861599,0.01614169,68411.0,68410.0,0.87216522]
[1722191862102,0.01614169,68411.0,68410.0,0.87516522]
[1722191862451,0.03908463,68411.0,68410.0,0.87516522]
[1722191862693,0.01614169,68411.0,68410.0,0.87516522]
[1722191865959,0.03908465,68411.0,68410.0,0.87516522]
[1722191866840,0.03908465,68411.0,68410.0,0.86816522]
[1722191866970,0.03908465,68411.0,68410.0,0.87516522]
[1722191867173,0.01614169,68411.0,68410.0,0.87516522]
[1722191867397,0.01614169,68411.0,68410.0,0.86516522]
[1722191867604,0.01614169,68411.0,68410.0,0.86816522]
[1722191867827,0.01614169,68411.0,68410.0,0.87616522]
[1722191868242,0.01614169,68411.0,68410.0,0.87316522]
[1722191868445,0.01614169,68411.0,68410.0,0.86516522]
[1722191868683,0.05991653,68411.0,68410.0,0.88816522]
[1722191869542,0.05991969,68411.0,68410.0,0.88816522]
[1722191869780,0.05991969,68411.0,68410.0,0.87516522]
[1722191869982,0.01614169,68411.0,68410.0,0.88916522]
[1722191870380,0.03908486,68411.0,68410.0,0.87916522]
[1722191870583,0.03908486,68411.0,68410.0,0.88216522]
[1722191870757,0.01614169,68411.0,68410.0,0.87916522]
[1722191871156,0.01614169,68411.0,68410.0,0.88916522]
[1722191872712,0.01614169,68411.0,68410.0,0.51158222]
[1722191873470,0.01614169,68411.0,68410.0,0.03395182]
[1722191873968,0.12558946,68411.0,68410.0,0.03395182]
[1722191874143,0.14854321,68411.0,68410.0,0.03395182]
[1722191874346,0.12559998,68411.0,68410.0,0.03395182]
[1722191874524,0.12559998,68411.0,68410.0,0.00995182]
[1722191874723,0.12859998,68411.0,68410.0,0.01095182]
[1722191874922,0.116942,68410.0,68406.0,0.025919]
[1722191875124,0.08756513,68407.0,68406.0,0.025919]
[1722191875530,0.10945829,68408.0,68406.0,0.025919]
[1722191875689,0.116941,68410.0,68406.0,0.025919]
[1722191876302,0.01614169,68411.0,68406.0,0.025919]
[1722191876303,0.10946551,68408.0,68406.0,0.025919]
[1722191876527,0.08756701,68407.0,68406.0,0.025919]
[1722191876799,0.10946551,68408.0,68406.0,0.025919]
[1722191877570,0.11146551,68407.0,68406.0,0.0527254]
[1722191877748,0.10946551,68407.0,68406.0,0.0527254]
[1722191878310,0.10946551,68407.0,68406.0,0.028919]
[1722191879091,0.13241042,68408.0,68406.0,0.028919]
[1722191879496,0.13241042,68408.0,68407.0,0.0268064]
[1722191879497,0.02294491,68408.0,68407.0,0.0268064]
[1722191879904,0.11050617,68408.0,68407.0,0.0268064]
[1722191880105,0.110506,68408.0,68407.0,0.0268064]
[1722191880502,0.11050598,68408.0,68407.0,0.0268064]
[1722191880722,0.11450297,68408.0,68407.0,0.0288064]
[1722191881064,0.11050297,68408.0,68407.0,0.3901534]
[1722191881263,0.11250297,68408.0,68407.0,0.3901534]
[1722191881811,0.11249862,68408.0,68407.0,0.6240474]
[1722191882219,0.08955371,68408.0,68407.0,0.6240474]
[1722191882429,0.08955371,68408.0,68407.0,0.63403491]
[1722191885010,0.08955666,68408.0,68407.0,0.63403491]
[1722191885407,0.11250089,68408.0,68407.0,0.63403491]
[1722191885613,0.08955666,68408.0,68407.0,0.63403491]
[1722191885985,0.11250089,68408.0,68407.0,0.63403491]
[1722191886192,0.11250089,68408.0,68407.0,0.86792891]
[1722191886394,0.02494423,68408.0,68407.0,1.10182291]
[1722191887387,0.02494423,68408.0,68407.0,1.09982291]
[1722191887593,0.02294423,68408.0,68407.0,1.10682291]
[1722191887786,0.02294423,68408.0,68407.0,0.87592891]
[1722191888681,0.06672552,68408.0,68407.0,0.87592891]
[1722191889958,0.02294423,68408.0,68407.0,0.87592891]
[1722191890293,0.04378129,68410.0,68407.0,0.87592891]
[1722191890294,0.01614169,68411.0,68410.0,0.0768064]
[1722191890497,0.08181363,68411.0,68410.0,0.6615134]
[1722191890671,0.01614169,68411.0,68410.0,0.67150519]
[1722191890872,0.08185326,68411.0,68410.0,0.67150519]
[1722191891074,0.01614169,68411.0,68410.0,0.67150519]
[1722191891353,0.01614169,68411.0,68410.0,0.48762219]
[1722191891354,0.08185324,68411.0,68410.0,0.48762219]
[1722191891454,0.01614169,68411.0,68410.0,0.48762219]
[1722191892055,0.01614169,68411.0,68410.0,0.17693279]
[1722191892280,0.01614169,68411.0,68410.0,0.00999179]
[1722191892479,0.01614169,68411.0,68409.0,0.05]
[1722191892681,0.01614169,68411.0,68410.0,0.00998846]
[1722191892877,0.01614169,68411.0,68410.0,0.004]
[1722191893325,0.2645597,68411.0,68410.0,0.00998846]
[1722191893522,0.28750391,68411.0,68409.0,0.004]
[1722191893779,0.13158122,68410.0,68409.0,0.004]
[1722191893954,0.0390859,68411.0,68409.0,0.004]
[1722191894160,0.13158021,68410.0,68408.0,0.05]
[1722191894315,0.0390859,68411.0,68410.0,0.004]
[1722191894896,0.17066008,68411.0,68410.0,0.004]
[1722191895127,0.0430859,68411.0,68410.0,0.004]
[1722191895336,0.1560259,68411.0,68410.0,0.004]
[1722191895749,0.1590259,68411.0,68407.0,0.000924]
[1722191895966,0.13157585,68410.0,68407.0,0.000924]
[1722191896419,0.13157585,68410.0,68408.0,0.05]
[1722191896799,0.13157585,68409.0,68407.0,0.000924]
[1722191897002,0.13157585,68409.0,68407.0,0.001924]
[1722191897209,0.14209317,68411.0,68408.0,0.05]
[1722191897420,0.13157969,68409.0,68408.0,0.1268064]
[1722191897629,0.002,68410.0,68408.0,0.05]
[1722191897630,0.13357969,68410.0,68408.0,0.05]
[1722191897779,0.13557969,68410.0,68408.0,0.002]